fUST/lending_fUST_20260529
["ID","MTS","AMOUNT","RATE_DAILY","PERIOD"]
[423287927,1780029032000,-192.95917011,9.268e-05,2]
[423287931,1780029032000,-2373.8494659,9.459e-05,2]
[423287925,1780029032000,-189.53801959,9.173e-05,2]
[423287929,1780029032000,-5000.0,9.363e-05,2]
[423288149,1780029040000,-1741.31174444,9.364e-05,2]
[423288153,1780029041000,-21.06736516,9.364e-05,2]
[423288179,1780029046000,-2768.94085982,9.964e-05,2]
[423288177,1780029046000,-1134.7714245,9.364e-05,2]
[423288178,1780029046000,-164.43981213,9.962e-05,2]
[423288176,1780029046000,-2392.72001008,9.27e-05,2]
[423288175,1780029046000,-1865.79998992,9.27e-05,2]
[423288168,1780029046000,-741.48,9.27e-05,2]
[423288183,1780029047000,-135560.54340763,9.964e-05,2]
[423288182,1780029047000,-3223.4699389,9.964e-05,2]
[423288185,1780029094000,-4185.84844777,9.863e-05,2]
[423288210,1780029367000,680.0,0.00020249,120]
[423288241,1780030231000,-3565.81870675,8.286e-05,2]
[423288242,1780030232000,-697.03980434,8.286e-05,2]
[423288243,1780030232000,-465.47474215,8.286e-05,2]
[423288395,1780030238000,-500.0,9.761e-05,2]
[423288396,1780030238000,-500.0,9.761e-05,2]
[423288392,1780030238000,-500.0,9.761e-05,2]
[423288400,1780030238000,-500.0,9.761e-05,2]
[423288390,1780030238000,-500.0,9.761e-05,2]
[423288389,1780030238000,-500.0,9.761e-05,2]
[423288399,1780030238000,-510.06212811,9.761e-05,2]
[423288388,1780030238000,-292.94242039,9.761e-05,2]
[423288385,1780030238000,-300.0,9.759e-05,2]
[423288382,1780030238000,-152.0,8.501e-05,7]
[423288387,1780030238000,-1200.0,9.759e-05,2]
[423288386,1780030238000,-300.0,9.759e-05,2]
[423288384,1780030238000,-172.107495,9.497e-05,2]
[423288381,1780030238000,-173.394795,8.458e-05,2]
[423288380,1780030238000,-205.9692913,8.37e-05,2]
[423288397,1780030238000,-500.0,9.761e-05,2]
[423288383,1780030238000,-160.5658,8.586e-05,2]
[423288391,1780030238000,-500.0,9.761e-05,2]
[423288379,1780030238000,-271.66674676,8.286e-05,2]
[423288394,1780030238000,-500.0,9.761e-05,2]
[423288415,1780030238000,-28113.98504321,9.762e-05,2]
[423288414,1780030238000,-1659.5091188,9.762e-05,2]
[423288408,1780030238000,-500.0,9.761e-05,2]
[423288409,1780030238000,-627.14767981,9.761e-05,2]
[423288416,1780030238000,-811.51114452,9.762e-05,2]
[423288412,1780030238000,-5990.86255444,9.762e-05,2]
[423288405,1780030238000,-500.0,9.761e-05,2]
[423288411,1780030238000,-500.0,9.761e-05,2]
[423288393,1780030238000,-454.42527541,9.761e-05,2]
[423288407,1780030238000,-500.0,9.761e-05,2]
[423288410,1780030238000,-505.09393396,9.761e-05,2]
[423288404,1780030238000,-589.90251108,9.761e-05,2]
[423288402,1780030238000,-508.71993254,9.761e-05,2]
[423288403,1780030238000,-500.0,9.761e-05,2]
[423288413,1780030238000,-3168.86616958,9.762e-05,2]
[423288401,1780030238000,-598.15174575,9.761e-05,2]
[423288398,1780030238000,-500.0,9.761e-05,2]
[423288406,1780030238000,-500.0,9.761e-05,2]
[423288432,1780030243000,-166.72,8.42e-05,2]
[423288433,1780030243000,-594.14230765,9.664e-05,2]
[423288434,1780030243000,-2292.89147835,9.664e-05,2]
[423288436,1780030243000,-449.35546037,9.761e-05,2]
[423288435,1780030243000,-2112.966214,9.664e-05,2]
[423288438,1780030243000,-3276.19821707,9.762e-05,2]
[423288440,1780030243000,-27001.18721161,9.762e-05,2]
[423288439,1780030243000,-1068.60977253,9.762e-05,2]
[423288441,1780030243000,-3215.89712044,9.762e-05,2]
[423288443,1780030243000,-13968.27331962,9.762e-05,2]
[423288437,1780030243000,-8691.67832563,9.762e-05,2]
[423288442,1780030243000,-1164.14458316,9.762e-05,2]
[423288450,1780030246000,-18717.05941191,9.762e-05,2]
[423288449,1780030246000,-10695.5512453,9.762e-05,2]
[423288448,1780030246000,-30252.59273744,9.762e-05,2]
[423288447,1780030246000,-3275.0,9.762e-05,2]
[423288446,1780030246000,-500.0,9.761e-05,2]
[423288458,1780030581000,646.0,0.00020251,120]
[423288460,1780030674000,-4848.0,8.504e-05,2]
[423288459,1780030674000,-152.0,8.501e-05,7]
[423288462,1780030675000,-4848.0,8.59e-05,2]
[423288461,1780030675000,-152.0,8.504e-05,2]
[423288463,1780030676000,-152.0,8.59e-05,2]
[423288465,1780030676000,-1200.0,8.941e-05,2]
[423288464,1780030676000,-213.32374439,8.677e-05,2]
[423288466,1780030676000,-300.0,8.941e-05,2]
[423288468,1780030676000,-300.0,9.12e-05,2]
[423288470,1780030676000,-300.0,9.12e-05,2]
[423288467,1780030676000,-300.0,9.12e-05,2]
[423288472,1780030676000,-300.0,9.12e-05,2]
[423288471,1780030676000,-300.0,9.12e-05,2]
[423288474,1780030676000,-300.0,9.12e-05,2]
[423288473,1780030676000,-300.0,9.12e-05,2]
[423288475,1780030676000,-300.0,9.12e-05,2]
[423288477,1780030676000,-134.67625561,9.12e-05,2]
[423288476,1780030676000,-300.0,9.12e-05,2]
[423288469,1780030676000,-300.0,9.12e-05,2]
[423288482,1780030677000,-300.0,9.12e-05,2]
[423288479,1780030677000,-300.0,9.12e-05,2]
[423288478,1780030677000,-165.32374439,9.12e-05,2]
[423288481,1780030677000,-300.0,9.12e-05,2]
[423288480,1780030677000,-300.0,9.12e-05,2]
[423288483,1780030677000,-183.562,9.469e-05,2]
[423288490,1780030677000,-252.71339209,9.561e-05,2]
[423288486,1780030677000,-622.57953548,9.56e-05,2]
[423288487,1780030677000,-500.0,9.561e-05,2]
[423288485,1780030677000,-500.0,9.56e-05,2]
[423288489,1780030677000,-575.82132804,9.561e-05,2]
[423288488,1780030677000,-500.0,9.561e-05,2]
[423288484,1780030677000,-500.0,9.56e-05,2]
[423288494,1780030678000,-500.0,9.561e-05,2]
[423288491,1780030678000,-247.28660791,9.561e-05,2]
[423288493,1780030678000,-500.0,9.561e-05,2]
[423288492,1780030678000,-500.0,9.561e-05,2]
[423288497,1780030678000,-205.05969427,9.561e-05,2]
[423288495,1780030678000,-500.0,9.561e-05,2]
[423288498,1780030678000,-349.16045485,9.561e-05,2]
[423288501,1780030678000,-500.0,9.561e-05,2]
[423288500,1780030678000,-514.47760013,9.561e-05,2]
[423288496,1780030678000,-500.0,9.561e-05,2]
[423288502,1780030678000,-184.01564284,9.561e-05,2]
[423288499,1780030678000,-500.0,9.561e-05,2]
[423288505,1780030679000,-4148.91843134,9.562e-05,2]
[423288504,1780030679000,-500.0,9.561e-05,2]
[423288503,1780030679000,-351.08156866,9.561e-05,2]
[423288506,1780030680000,-5000.0,9.562e-05,2]
[423288507,1780030681000,-5000.0,9.562e-05,2]
[423288508,1780030687000,-5000.0,9.465e-05,2]
[423288510,1780030697000,-300.0,9.561e-05,2]
[423288511,1780030697000,-4200.0,9.562e-05,2]
[423288509,1780030697000,-500.0,9.56e-05,2]
[423288512,1780030698000,-5000.0,9.562e-05,2]
[423288513,1780030699000,-5000.0,9.562e-05,2]
[423288514,1780030700000,-5000.0,9.562e-05,2]
[423288515,1780030701000,-5000.0,9.562e-05,2]
[423288516,1780030702000,-5000.0,9.562e-05,2]
[423288518,1780030703000,-4500.0,9.562e-05,2]
[423288517,1780030703000,-500.0,9.561e-05,2]
[423288519,1780030704000,-5000.0,9.562e-05,2]
[423288520,1780030725000,-3927.38,9.465e-05,2]
[423288526,1780030891000,-151.0,8.498e-05,7]
[423288569,1780031432000,-4911.70035213,8.239e-05,2]
[423288567,1780031432000,-2225.20142725,8.157e-05,2]
[423288920,1780031440000,-348.92039526,9.519e-05,2]
[423288921,1780031440000,-500.0,9.519e-05,2]
[423288917,1780031440000,-500.0,9.518e-05,2]
[423288916,1780031440000,-500.0,9.518e-05,2]
[423288915,1780031440000,-500.0,9.518e-05,2]
[423288934,1780031440000,-500.0,9.559e-05,2]
[423288924,1780031440000,-500.0,9.519e-05,2]
[423288935,1780031440000,-500.0,9.559e-05,2]
[423288936,1780031440000,-500.0,9.559e-05,2]
[423288925,1780031440000,-710.34,9.519e-05,2]
[423288914,1780031440000,-500.0,9.517e-05,2]
[423288918,1780031440000,-500.0,9.518e-05,2]
[423288908,1780031440000,-152.0,8.498e-05,7]
[423288913,1780031440000,-151.39588691,9.517e-05,2]
[423288911,1780031440000,-160.0,9.153e-05,2]
[423288912,1780031440000,-500.0,9.517e-05,2]
[423288905,1780031440000,-5000.0,8.322e-05,2]
[423288903,1780031440000,-300.0,8.321e-05,2]
[423288909,1780031440000,-172.107495,9.109e-05,2]
[423288910,1780031440000,-420.0,9.153e-05,2]
[423288904,1780031440000,-1200.0,8.321e-05,2]
[423288906,1780031440000,-212.61313402,8.449e-05,2]
[423288902,1780031440000,-88.29964787,8.239e-05,2]
[423288907,1780031440000,-1.0,8.498e-05,7]
[423288932,1780031440000,-500.0,9.559e-05,2]
[423288922,1780031440000,-500.0,9.519e-05,2]
[423288923,1780031440000,-500.0,9.519e-05,2]
[423288919,1780031440000,-500.0,9.519e-05,2]
[423288926,1780031440000,-500.83177881,9.519e-05,2]
[423288928,1780031440000,-500.0,9.519e-05,2]
[423288954,1780031440000,-500.0,9.56e-05,2]
[423288956,1780031440000,-500.0,9.56e-05,2]
[423288957,1780031440000,-232.5915147,9.56e-05,2]
[423288953,1780031440000,-500.0,9.56e-05,2]
[423288952,1780031440000,-500.0,9.56e-05,2]
[423288950,1780031440000,-500.0,9.56e-05,2]
[423288951,1780031440000,-500.0,9.56e-05,2]
[423288941,1780031440000,-500.0,9.559e-05,2]
[423288942,1780031440000,-500.0,9.559e-05,2]
[423288945,1780031440000,-500.0,9.559e-05,2]
[423288946,1780031440000,-586.3712757,9.559e-05,2]
[423288949,1780031440000,-503.1603834,9.56e-05,2]
[423288955,1780031440000,-500.0,9.56e-05,2]
[423288943,1780031440000,-500.0,9.559e-05,2]
[423288944,1780031440000,-500.0,9.559e-05,2]
[423288933,1780031440000,-500.0,9.559e-05,2]
[423288927,1780031440000,-523.78011462,9.519e-05,2]
[423288930,1780031440000,-13061.6664348,9.52e-05,2]
[423288931,1780031440000,-500.0,9.559e-05,2]
[423288929,1780031440000,-500.0,9.519e-05,2]
[423288947,1780031440000,-500.0,9.559e-05,2]
[423288937,1780031440000,-500.0,9.559e-05,2]
[423288940,1780031440000,-500.0,9.559e-05,2]
[423288939,1780031440000,-500.0,9.559e-05,2]
[423288948,1780031440000,-600.0,9.559e-05,2]
[423288938,1780031440000,-500.0,9.559e-05,2]
[423288981,1780031441000,-506.87639969,9.56e-05,2]
[423288985,1780031441000,-500.0,9.56e-05,2]
[423288986,1780031441000,-500.0,9.56e-05,2]
[423288983,1780031441000,-500.0,9.56e-05,2]
[423289000,1780031441000,-250.73026443,9.56e-05,2]
[423288988,1780031441000,-500.0,9.56e-05,2]
[423288996,1780031441000,-500.0,9.56e-05,2]
[423288993,1780031441000,-500.0,9.56e-05,2]
[423288994,1780031441000,-500.0,9.56e-05,2]
[423288987,1780031441000,-500.0,9.56e-05,2]
[423288998,1780031441000,-500.0,9.56e-05,2]
[423288989,1780031441000,-500.49195004,9.56e-05,2]
[423288999,1780031441000,-500.0,9.56e-05,2]
[423288991,1780031441000,-500.0,9.56e-05,2]
[423288990,1780031441000,-500.0,9.56e-05,2]
[423288995,1780031441000,-500.0,9.56e-05,2]
[423288992,1780031441000,-500.0,9.56e-05,2]
[423288982,1780031441000,-500.0,9.56e-05,2]
[423288997,1780031441000,-500.0,9.56e-05,2]
[423288980,1780031441000,-500.0,9.56e-05,2]
[423288961,1780031441000,-500.0,9.56e-05,2]
[423288979,1780031441000,-500.0,9.56e-05,2]
[423288960,1780031441000,-500.0,9.56e-05,2]
[423288958,1780031441000,-267.4084853,9.56e-05,2]
[423288959,1780031441000,-500.0,9.56e-05,2]
[423288962,1780031441000,-500.0,9.56e-05,2]
[423288971,1780031441000,-500.0,9.56e-05,2]
[423288967,1780031441000,-454.41900695,9.56e-05,2]
[423288972,1780031441000,-500.0,9.56e-05,2]
[423288963,1780031441000,-500.0,9.56e-05,2]
[423288964,1780031441000,-156.45858932,9.56e-05,2]
[423288966,1780031441000,-500.0,9.56e-05,2]
[423288968,1780031441000,-500.0,9.56e-05,2]
[423288965,1780031441000,-343.54141068,9.56e-05,2]
[423288969,1780031441000,-500.51457827,9.56e-05,2]
[423288970,1780031441000,-500.0,9.56e-05,2]
[423288974,1780031441000,-500.0,9.56e-05,2]
[423288973,1780031441000,-500.0,9.56e-05,2]
[423288975,1780031441000,-501.84191067,9.56e-05,2]
[423288977,1780031441000,-500.0,9.56e-05,2]
[423288978,1780031441000,-500.0,9.56e-05,2]
[423288976,1780031441000,-500.0,9.56e-05,2]
[423289002,1780031441000,-500.0,9.56e-05,2]
[423288984,1780031441000,-500.0,9.56e-05,2]
[423289004,1780031441000,-500.0,9.56e-05,2]
[423289029,1780031441000,-500.0,9.56e-05,2]
[423289030,1780031441000,-500.0,9.56e-05,2]
[423289032,1780031441000,-500.0,9.56e-05,2]
[423289037,1780031441000,-500.0,9.56e-05,2]
[423289027,1780031441000,-500.0,9.56e-05,2]
[423289036,1780031441000,-500.0,9.56e-05,2]
[423289039,1780031441000,-500.0,9.56e-05,2]
[423289031,1780031441000,-500.0,9.56e-05,2]
[423289035,1780031441000,-500.0,9.56e-05,2]
[423289034,1780031441000,-500.0,9.56e-05,2]
[423289033,1780031441000,-500.56615319,9.56e-05,2]
[423289042,1780031441000,-500.0,9.56e-05,2]
[423289043,1780031441000,-1000.0,9.56e-05,2]
[423289040,1780031441000,-500.81352885,9.56e-05,2]
[423289051,1780031441000,-500.0,9.56e-05,2]
[423289047,1780031441000,-500.0,9.56e-05,2]
[423289046,1780031441000,-500.0,9.56e-05,2]
[423289045,1780031441000,-500.29411198,9.56e-05,2]
[423289003,1780031441000,-500.0,9.56e-05,2]
[423289028,1780031441000,-500.0,9.56e-05,2]
[423289026,1780031441000,-500.0,9.56e-05,2]
[423289038,1780031441000,-502.06824882,9.56e-05,2]
[423289023,1780031441000,-500.78705169,9.56e-05,2]
[423289024,1780031441000,-500.0,9.56e-05,2]
[423289001,1780031441000,-500.0,9.56e-05,2]
[423289006,1780031441000,-550.97086306,9.56e-05,2]
[423289011,1780031441000,-500.0,9.56e-05,2]
[423289010,1780031441000,-500.0,9.56e-05,2]
[423289005,1780031441000,-500.0,9.56e-05,2]
[423289013,1780031441000,-500.0,9.56e-05,2]
[423289009,1780031441000,-500.0,9.56e-05,2]
[423289008,1780031441000,-500.0,9.56e-05,2]
[423289012,1780031441000,-500.0,9.56e-05,2]
[423289007,1780031441000,-505.15316384,9.56e-05,2]
[423289015,1780031441000,-500.0,9.56e-05,2]
[423289025,1780031441000,-500.0,9.56e-05,2]
[423289014,1780031441000,-501.00804748,9.56e-05,2]
[423289017,1780031441000,-500.0,9.56e-05,2]
[423289019,1780031441000,-500.0,9.56e-05,2]
[423289016,1780031441000,-486.75752044,9.56e-05,2]
[423289018,1780031441000,-500.0,9.56e-05,2]
[423289020,1780031441000,-500.0,9.56e-05,2]
[423289021,1780031441000,-500.92499855,9.56e-05,2]
[423289022,1780031441000,-500.0,9.56e-05,2]
[423289095,1780031442000,-500.0,9.56e-05,2]
[423289104,1780031442000,-500.0,9.56e-05,2]
[423289096,1780031442000,-500.0,9.56e-05,2]
[423289102,1780031442000,-500.82711606,9.56e-05,2]
[423289099,1780031442000,-500.0,9.56e-05,2]
[423289100,1780031442000,-500.07873731,9.56e-05,2]
[423289098,1780031442000,-501.9275035,9.56e-05,2]
[423289094,1780031442000,-501.41407145,9.56e-05,2]
[423289103,1780031442000,-501.61228547,9.56e-05,2]
[423289092,1780031442000,-500.0,9.56e-05,2]
[423289093,1780031442000,-502.87210418,9.56e-05,2]
[423289082,1780031442000,-500.0,9.56e-05,2]
[423289089,1780031442000,-502.76890537,9.56e-05,2]
[423289088,1780031442000,-503.14821195,9.56e-05,2]
[423289083,1780031442000,-500.0,9.56e-05,2]
[423289084,1780031442000,-500.0,9.56e-05,2]
[423289085,1780031442000,-500.0,9.56e-05,2]
[423289086,1780031442000,-500.0,9.56e-05,2]
[423289087,1780031442000,-500.0,9.56e-05,2]
[423289081,1780031442000,-500.0,9.56e-05,2]
[423289090,1780031442000,-501.5152295,9.56e-05,2]
[423289080,1780031442000,-500.0,9.56e-05,2]
[423289101,1780031442000,-502.43620079,9.56e-05,2]
[423289091,1780031442000,-500.0,9.56e-05,2]
[423289097,1780031442000,-502.78332557,9.56e-05,2]
[423289113,1780031442000,-558.8399715,9.56e-05,2]
[423289108,1780031442000,-500.0,9.56e-05,2]
[423289131,1780031442000,-1.39850717,9.751e-05,2]
[423289105,1780031442000,-500.0,9.56e-05,2]
[423289130,1780031442000,-102.72332442,9.751e-05,2]
[423289129,1780031442000,-197.27667558,9.751e-05,2]
[423289127,1780031442000,-300.0,9.751e-05,2]
[423289128,1780031442000,-300.0,9.751e-05,2]
[423289124,1780031442000,-300.0,9.751e-05,2]
[423289123,1780031442000,-500.0,9.56e-05,2]
[423289122,1780031442000,-500.0,9.56e-05,2]
[423289125,1780031442000,-300.0,9.751e-05,2]
[423289119,1780031442000,-437.13608578,9.56e-05,2]
[423289121,1780031442000,-1168.24509753,9.56e-05,2]
[423289126,1780031442000,-300.0,9.751e-05,2]
[423289118,1780031442000,-501.1756683,9.56e-05,2]
[423289107,1780031442000,-500.0,9.56e-05,2]
[423289120,1780031442000,-1754.00211669,9.56e-05,2]
[423289111,1780031442000,-500.0,9.56e-05,2]
[423289109,1780031442000,-500.0,9.56e-05,2]
[423289110,1780031442000,-501.6709038,9.56e-05,2]
[423289115,1780031442000,-500.0,9.56e-05,2]
[423289112,1780031442000,-500.0,9.56e-05,2]
[423289106,1780031442000,-502.20637614,9.56e-05,2]
[423289116,1780031442000,-500.0,9.56e-05,2]
[423289117,1780031442000,-500.0,9.56e-05,2]
[423289114,1780031442000,-500.0,9.56e-05,2]
[423289160,1780031446000,-374.50108732,9.76e-05,2]
[423289161,1780031446000,-500.0,9.76e-05,2]
[423289170,1780031446000,-1021.57559835,9.762e-05,2]
[423289159,1780031446000,-500.0,9.76e-05,2]
[423289167,1780031446000,-503.54913553,9.762e-05,2]
[423289163,1780031446000,-500.0,9.76e-05,2]
[423289165,1780031446000,-1000.0,9.762e-05,2]
[423289168,1780031446000,-1000.0,9.762e-05,2]
[423289169,1780031446000,-1000.0,9.762e-05,2]
[423289162,1780031446000,-500.0,9.76e-05,2]
[423289164,1780031446000,-523.23216365,9.76e-05,2]
[423289155,1780031446000,-500.0,9.76e-05,2]
[423289166,1780031446000,-496.45086447,9.762e-05,2]
[423289156,1780031446000,-500.0,9.76e-05,2]
[423289145,1780031446000,-298.60149283,9.751e-05,2]
[423289150,1780031446000,-300.0,9.751e-05,2]
[423289152,1780031446000,-300.0,9.751e-05,2]
[423289153,1780031446000,-300.0,9.751e-05,2]
[423289158,1780031446000,-466.75577621,9.76e-05,2]
[423289151,1780031446000,-300.0,9.751e-05,2]
[423289157,1780031446000,-500.0,9.76e-05,2]
[423289149,1780031446000,-300.0,9.751e-05,2]
[423289147,1780031446000,-300.0,9.751e-05,2]
[423289148,1780031446000,-300.0,9.751e-05,2]
[423289146,1780031446000,-300.0,9.751e-05,2]
[423289144,1780031446000,-500.0,9.56e-05,2]
[423289143,1780031446000,-101.22329644,9.517e-05,2]
[423289142,1780031446000,-398.77670356,9.517e-05,2]
[423289173,1780031446000,-151.0,9.762e-05,2]
[423289154,1780031446000,-600.0,9.752e-05,2]
[423289172,1780031446000,-151.0,9.762e-05,2]
[423289171,1780031446000,-151.0,9.762e-05,2]
[423289176,1780031446000,-1027.9901914,9.653e-05,2]
[423289174,1780031446000,-157.87774767,9.762e-05,2]
[423289205,1780031446000,-429.95434471,9.763e-05,2]
[423289203,1780031446000,-500.0,9.763e-05,2]
[423289204,1780031446000,-500.0,9.763e-05,2]
[423289199,1780031446000,-503.22230869,9.763e-05,2]
[423289198,1780031446000,-277.63350926,9.763e-05,2]
[423289201,1780031446000,-500.0,9.763e-05,2]
[423289200,1780031446000,-504.04183069,9.763e-05,2]
[423289202,1780031446000,-537.87071813,9.763e-05,2]
[423289196,1780031446000,-502.89232216,9.763e-05,2]
[423289193,1780031446000,-500.0,9.763e-05,2]
[423289191,1780031446000,-506.68401734,9.763e-05,2]
[423289190,1780031446000,-500.0,9.763e-05,2]
[423289192,1780031446000,-500.0,9.763e-05,2]
[423289189,1780031446000,-500.0,9.763e-05,2]
[423289197,1780031446000,-501.70166642,9.763e-05,2]
[423289186,1780031446000,-500.0,9.763e-05,2]
[423289187,1780031446000,-500.0,9.763e-05,2]
[423289178,1780031446000,-61.85464796,9.763e-05,2]
[423289175,1780031446000,-438.14535204,9.763e-05,2]
[423289177,1780031446000,-3972.0098086,9.653e-05,2]
[423289179,1780031446000,-502.52098636,9.763e-05,2]
[423289182,1780031446000,-500.0,9.763e-05,2]
[423289181,1780031446000,-502.98489721,9.763e-05,2]
[423289188,1780031446000,-500.66950821,9.763e-05,2]
[423289184,1780031446000,-501.67449274,9.763e-05,2]
[423289185,1780031446000,-500.0,9.763e-05,2]
[423289183,1780031446000,-307.17890038,9.763e-05,2]
[423289194,1780031446000,-516.15386485,9.763e-05,2]
[423289180,1780031446000,-503.40854112,9.763e-05,2]
[423289195,1780031446000,-506.21176593,9.763e-05,2]
[423289207,1780031546000,829.7489768,0.00020268,120]
[423289213,1780031808000,614.0,0.00020268,120]
[423289323,1780032632000,-300.0,8.159e-05,2]
[423289302,1780032632000,-852.84691553,8e-05,2]
[423289328,1780032632000,-300.0,8.159e-05,2]
[423289304,1780032632000,-872.56636422,8e-05,2]
[423289306,1780032632000,-5000.0,8e-05,2]
[423289308,1780032632000,-494.27910532,8.156e-05,2]
[423289320,1780032632000,-300.0,8.159e-05,2]
[423289330,1780032632000,-300.0,8.159e-05,2]
[423289285,1780032632000,-213.00241066,7.999e-05,2]
[423289316,1780032632000,-300.0,8.159e-05,2]
[423289314,1780032632000,-300.0,8.159e-05,2]
[423289294,1780032632000,-1883.92829041,8e-05,2]
[423289292,1780032632000,-21.99392773,7.999e-05,2]
[423289296,1780032632000,-460.07175006,8e-05,2]
[423289283,1780032632000,-300.0,7.999e-05,2]
[423289312,1780032632000,-300.0,8.159e-05,2]
[423289310,1780032632000,-300.0,8.159e-05,2]
[423289326,1780032632000,-300.0,8.159e-05,2]
[423289352,1780032632000,-151.5,9.243e-05,2]
[423289338,1780032632000,-300.0,8.159e-05,2]
[423289368,1780032632000,-505.81647173,9.275e-05,2]
[423289366,1780032632000,-853.53149279,9.275e-05,2]
[423289361,1780032632000,-221.52026734,9.243e-05,2]
[423289363,1780032632000,-242.35559162,9.274e-05,2]
[423289343,1780032632000,-300.0,8.159e-05,2]
[423289358,1780032632000,-151.5,9.243e-05,2]
[423289356,1780032632000,-151.5,9.243e-05,2]
[423289348,1780032632000,-420.0,8.799e-05,2]
[423289364,1780032632000,-213.3828732,9.275e-05,2]
[423289354,1780032632000,-151.5,9.243e-05,2]
[423289350,1780032632000,-151.5,9.243e-05,2]
[423289334,1780032632000,-300.0,8.159e-05,2]
[423289332,1780032632000,-300.0,8.159e-05,2]
[423289336,1780032632000,-300.0,8.159e-05,2]
[423289340,1780032632000,-300.0,8.159e-05,2]
[423289347,1780032632000,-152.0,8.501e-05,7]
[423289345,1780032632000,-152.0,8.501e-05,7]
[423289391,1780032638000,-500.0,9.511e-05,2]
[423289388,1780032638000,-500.0,9.511e-05,2]
[423289387,1780032638000,-500.0,9.511e-05,2]
[423289390,1780032638000,-500.0,9.511e-05,2]
[423289384,1780032638000,-3414.12597118,9.275e-05,2]
[423289389,1780032638000,-186.33139427,9.511e-05,2]
[423289386,1780032638000,-500.0,9.511e-05,2]
[423289383,1780032638000,-1414.62938706,9.275e-05,2]
[423289385,1780032638000,-500.0,9.511e-05,2]
[423289392,1780032638000,-500.0,9.511e-05,2]
[423289398,1780032638000,-500.0,9.511e-05,2]
[423289396,1780032638000,-500.0,9.511e-05,2]
[423289400,1780032638000,-500.0,9.511e-05,2]
[423289401,1780032638000,-500.0,9.511e-05,2]
[423289403,1780032638000,-500.0,9.511e-05,2]
[423289399,1780032638000,-500.0,9.511e-05,2]
[423289395,1780032638000,-500.0,9.511e-05,2]
[423289397,1780032638000,-500.0,9.511e-05,2]
[423289394,1780032638000,-500.0,9.511e-05,2]
[423289393,1780032638000,-500.0,9.511e-05,2]
[423289402,1780032638000,-500.0,9.511e-05,2]
[423289445,1780032639000,-500.0,9.514e-05,2]
[423289447,1780032639000,-500.0,9.514e-05,2]
[423289446,1780032639000,-500.0,9.514e-05,2]
[423289443,1780032639000,-500.0,9.514e-05,2]
[423289439,1780032639000,-500.0,9.514e-05,2]
[423289436,1780032639000,-500.0,9.514e-05,2]
[423289435,1780032639000,-500.0,9.514e-05,2]
[423289438,1780032639000,-500.0,9.514e-05,2]
[423289444,1780032639000,-500.0,9.514e-05,2]
[423289440,1780032639000,-500.0,9.514e-05,2]
[423289442,1780032639000,-500.0,9.514e-05,2]
[423289437,1780032639000,-500.0,9.514e-05,2]
[423289449,1780032639000,-500.0,9.514e-05,2]
[423289450,1780032639000,-500.0,9.514e-05,2]
[423289451,1780032639000,-500.0,9.514e-05,2]
[423289452,1780032639000,-158.98645256,9.514e-05,2]
[423289433,1780032639000,-500.0,9.514e-05,2]
[423289453,1780032639000,-300.0,9.514e-05,2]
[423289448,1780032639000,-500.0,9.514e-05,2]
[423289455,1780032639000,-502.94760959,9.515e-05,2]
[423289456,1780032639000,-152.07760649,9.515e-05,2]
[423289475,1780032639000,-500.0,9.515e-05,2]
[423289462,1780032639000,-500.0,9.515e-05,2]
[423289464,1780032639000,-500.0,9.515e-05,2]
[423289460,1780032639000,-500.0,9.515e-05,2]
[423289461,1780032639000,-311.91411296,9.515e-05,2]
[423289467,1780032639000,-500.0,9.515e-05,2]
[423289454,1780032639000,-500.0,9.515e-05,2]
[423289432,1780032639000,-500.0,9.514e-05,2]
[423289425,1780032639000,-568.67384031,9.514e-05,2]
[423289441,1780032639000,-500.0,9.514e-05,2]
[423289404,1780032639000,-500.0,9.511e-05,2]
[423289406,1780032639000,-500.0,9.511e-05,2]
[423289414,1780032639000,-500.0,9.513e-05,2]
[423289405,1780032639000,-500.0,9.511e-05,2]
[423289407,1780032639000,-500.0,9.511e-05,2]
[423289415,1780032639000,-500.0,9.513e-05,2]
[423289408,1780032639000,-500.0,9.511e-05,2]
[423289409,1780032639000,-298.36946916,9.511e-05,2]